Workbook

Sheet Menu
B2: Bienvenue au kit ANR de la DRIVe destiné à aider le montage de projets ANR Générique | L2: Dernière mise à jour : | N2: 2025-02-27
B4: Ce kit présente 10 onglets : Menu Admin : Les informations sur l’UBO dont vous avez besoin pour compléter l’onglet de l’ANR Notice : Des recommandations pour bien préparer le dossier Budget : Une aide pour la construction de votre budget. Vous pouvez obtenir un PDF pour votre référence. Données financières : Onglet dans lequel le calcul se fait automatiquement à partir des données chiffrées renseignées dans l'onglet "Calcul" Données financières : chiffres caluclées à reporter sur IRIS (plateforme de dépot de l'ANR) Réfs : Des documents outils de l'ANR Ex de dépenses éligibles : une liste non exhaustive d'exemples de dépenses éligibles JCJC : spécificités concernant les jeunes chercheurs PRCE : spécificités concernant les projets avec les entreprises Suivi des vérsions : la date et les changements apportées entre des différent vérsions est noté pour vous permettre de savoir ce qui été modifié si vous avez travaillé avec une ancienne vérsion. Si vous avez besoin d'aide vous pouvez contacter Gemma DAVIES ou Anne-Louise NEDELEC à la DRIVe prenom.nom@univ-brest.fr

Sheet Admin
A2: Tutelle Gestionnaire | G2: Unité de recherche : établissement gestionnaire du financement
A3: SIRET de la tutelle gestionnaire | B3: 94129831700012 | G3: L'établissement des personnels qui effectue des bons de commandes et mets en paiement les factures
A5: Nom de la tutelle gestionnaire | B5: Université de Brest
G7: Unité de recherche : établissement hébergeant
A8: Personne habilitée à représenter juridiquement l'établissement gestionnaire | G8: Selon le règlement financier de l'ANR, l'hébergeur est la tutelle du UR qui est propriétaire/gestionnaire du bâtiment dans lequel travaille la/le responsable scientifique du projet. L'hébergeur perçoit le PRECIPUT, qui est une participation de l'ANR à ses couts d'infrastructures de recherche, incluant ses couts immobiliers, d'investissement et de maintenance de plateformes et d'équipements mutualisés : centre de RMN, microscopie, BU etc
A10: Civilité | B10: Monsieur
A11: Nom | B11: OLIVARD
A12: Prénom | B12: Pascal
A13: Fonction | B13: Président
A14: Adresse | B14: 3 rue Matthieu Gallou
B15: 29238 Brest Cedex 3 | G15: Partenaire sur fonds propres ?
A16: Email | B16: drive@univ-brest.fr | G16: Ajouter le partenaire comme pour les partenaires avec un financement et sur la page "Annexe financière détaillée" il y a une case à cocher "sur fond propres". Il faut toute même remplir toutes les données administratives pour passer les pastilles d'orange en vert
A17: Téléphone | B17: 02 98 01 60 07
A18: Fonction | B18: Président
A21: Personne chargée du suivi administratif et financière
A23: Civilité | B23: Madame
A24: Nom | B24: BOSSER
A25: Prénom | B25: Kristen
A26: Email | B26: drive@univ-brest.fr
A27: Téléphone | B27: 02 98 01 60 07
A30: Informations Bancaires
A32: Nom de la banque | B32: TPBREST - TRESORERIE GENERALE
A33: IBAN | B33: FR76 | C33: 1007 | D33: 1290 | E33: 0000 | F33: 0010 | G33: 0279 | H33: 091
A34: BIC/SWIFT | B34: TRPUFRP1

Sheet Notice
B1: QUELQUES RECOMMANDATIONS
B2: Implication du coordinateur | C2: Un coordinateur qui a obtenu un projet en coordination ne pourra pas soumettre en tant que coordinateur au titre du l'année suivante. Un coordinateur ne peut être impliqué dans plus de trois propositions : un chercheur ne peut être impliqué comme coordinateur ou responsable scientifique de partenaire dans plus de trois propositions soumises dans le cadre de l'appel à projet générique et du programme Fr-All SHS du Plan d’action 2021. Toutes les propositions qui seraient déposées en ne respectant pas cette règle sont inéligibles au plan d'action 2021 en tant que coordinateur ou responsable scientifique. Pour l’édition 2020, tous les autres appels à projets (internationaux bilatéraux spécifiques hors appel franco-allemand SHS (FRAL), multilatéraux internationaux (Era-Net, JPI, EJP, Art. 185...), MRSEI, Astrid et Astrid Maturation, LabCom, Challenges, Chaires, Flashs...) ne sont pas concernés par cette limite d’implication. Pour un JCJC, le porteur du projet devrait être impliqué à un taux d'environ 75% de son temps de recherche. Et celui d'un coordinateur d'environ 40% de son temps de recherche.
B3: Changement de budget entre la phase 1 et la phase 2 | C3: L'amplitude de la modification budgétaire entre la phase 1 et la phase 2 est de +/- 7%. Cependant tout changement réglementaire (changement des frais de gestion…) qui intervient entre les deux phases n'est pas concerné par cette restriction. Le budget n'est pas évalué en phase 1 , néanmoins il est fortement conseillé d'être aussi précis que possible du fait de cette restriction.
B4: Les Personnels | C4: Taux de précarité : L’ensemble des personnels est comptabilisé en personne.mois. Un taux de 30% au plus est recommandé.
C5: Taux de précarité (%) = personnels non permanents financé par l'ANR/ total des personnels permanents ou non permanents, financé ou non par l'ANR
C7: Seuls les personnels des établissement pour lesquels un financement est demandé à l'ANR entrent dans le calcul (notamment, les partenaires étrangers n'entrent pas dans ce calcul). Les doctorants et les stagiaires sont exclus du calcul (mais reste éligibles aux financements de l'ANR).
C9: Les Doctorants (PhD) : sont recrutés pour une durée maximale de 36 mois et doivent être budgétisés sur un seul partenaire du projet. Les salaires des doctorants ont été revalorisées attention aux augmentations. Indemnité de fin contrat : A partir du 1er janvier 2021, les personnes recrutées sur un CDD de droit public d’un an ou moins (renouvellement inclus) peuvent ouvrir le droit à l’indemnité de fin contrat (prime de précarité) si leur contrat n'est pas renouvelé. Cette indemnité est un coût éligible et à prévoir dans le salaire (+10%). Les post-docs ne sont pas concernés par cette indemnité car ils dependent du code de la recherche et non de la fonction publique.
C10: Indemnité de stage : On conseille de prévoir un budget qui prends en compte des augmentations. Voir onglet "budget", l'exemple d'un stage de 6 mois.
B11: Pers.mois | C11: Un personne.mois correspond à une personne à temps plein pendant un mois. Pour une personne qui travaille à temps plein sur 3 ans on compte 36 personne.mois (3*12*36). Pour une personne qui travaille à mi-temps sur 3 ans, on compte 18 personne.mois (3*6=18). CONSEIL : il est conseillé que le porteur soit impliqué au moins à 30% de son temps de recherche soit 3,6 personne.mois pour une personne à temps plein sur un projet de 12 mois. Pour calculer l'implication d'un Enseignant Chercheur, le calcul se fait sur le temps que cette personne consacre à la recherche. Pour un Enseignant Chercheurs qui consacre 50% de son activité à la recherche et si son activité de recherche est consacré entièrement au projet déposé, on comptera 12 personne.mois ; si son activité de recherche est consacrée à 75% au projet déposé, on comptera 9 personne.mois. Cepenedant, pour le calcul du coût complet son salaire sera compté à 50%.
B14: Matériels | C14: Equipement informatique, scientifique, consommables, petits équipements….
C15: Règlement de l'UBO : équipement à partir de 600€ pour l'informatique et 800 € pour l'équipement scientifque est considéré comme de l'investissement.
B17: Prestation Service (droits de PI) - (à identifier dans poste DPI) | C17: Le porteur peut faire exécuter des prestations par des tiers extérieurs au Projet. Le coût de ces prestations doit rester inférieur ou égal à 50 % du coût global entrant dans l’assiette de l’aide.
B18: Frais généraux | C18: Ce poste comprend les dépenses liées aux missions (hébergement, trajet, restauration), participation et organisation de colloques, frais de réception. Les APC (Article Processing Charges : frais demandé pour la publication d'articles directement en Open Access voie "dorée") sont éligibles. Voir l'onglet exemples de budgets.
B19: PPST | C19: Sur les recommandations du Service du haut fonctionnaire de défense et de sécurité (SHFDS) du MESRI, l’ANR met en œuvre la PPST au cours de cet AAPG 2023 notamment pour les projets déposés comportant au sein de leurs consortiums, des entreprises étrangères ou des partenaires étrangers. D.6. Dispositif de protection du potentiel scientifique et technique de la nation (PPST). Note importante : En amont de tout dépôt de projet à l’ANR (tous les appels et instruments sont concernés), les déposants ou les déposantes sont invité.e.s à se rapprocher de leurs services en charge de l’application de la PPST au sein de leurs établissements (la DRIVe) afin de vérifier l’éligibilité de leur projet.

Sheet Budget
B3: Porteur (Nom/Prénom) | U3: Paramètres menu déroulant
B4: Unité | D4: UNITE/SIGLE | S4: EC liste | U4: Coûts personnel
S5: oui | U5: CDD
S6: non | U6: CDI
B7: ACRONYME (Projet) | G7: N°RNSR | U7: Doctorant
U8: Décharge (sans pers.mois)
U9: Stagiaire
B10: Durée du projet (en mois): | U10: Auto entrepreneur
U11: Titulaire
B15: (Pour le calcul du cout complet phase 2) Personnel non financé par ANR (obtenir les coûts auprès de l'employeur) | I15: Personnel financés par l'ANR (obtenir les coûts auprès de l'employeur)
B17: Catégorie (renseigner le grade de l'agent) | D17: Activité d'Enseignant-chercheur | E17: Nombre pers.mois | F17: coût mensuel € | G17: Estimation € (coût moyen) | I17: Catégorie (renseigner le grade de l'agent) | J17: Statut (calcul de taux de précarité) | K17: Nombre pers.mois | L17: coût mensuel € | M17: Indemnité de fin contrat (CDDs≤1an) | N17: Estimation Coût € | Q17: Button pour supprimer les exemples
C18: Statut
T19: homme.mois précaire
B20: Exemple MCF | C20: Titulaire | D20: oui | E20: 26 | F20: 5000 | G20: =IF(D20=$S$5,($F20/2)*$E20,($F20*$E20)) -> 65000 | I20: Exemple IGE | J20: CDD | K20: 12 | L20: 3300 | M20: =IF(AND(J20="CDD",K20<=12),(L20*K20)*0.1,0) -> 3960 | N20: =L20*K20+M20 -> 43560 | S20: calcule taux de précarité | T20: =IF(J20="CDD",K20,"") -> 12
B21: Exemple Pr | C21: Titulaire | D21: oui | E21: 8 | F21: 9000 | G21: 36000 | I21: Exemple Stagiaire | J21: Stagiaire | K21: 6 | L21: 750 | M21: =IF(AND(J21="CDD",K21<=12),(L21*K21)*0.1,0) -> 0 | N21: 4500 | T21: =IF(J21="CDD",K21,"") -> 
B22: Exemple Chercheur CDD | C22: CDD | D22: non | E22: 6 | F22: 4000 | G22: 24000 | I22: Exemple Doctorant | J22: Doctorant | K22: 36 | L22: =130000/K22 -> 3611.111111 | M22: 0 | N22: 130000 | T22: =IF(#REF!="CDD",#REF!,"") -> 
B23: Secteur privé : demander à l'entreprise | G23: =IF(D23=$S$5,($F23/2)*$E23,($F23*$E23)) -> 0 | I23: Exemple Post-doc | J23: CDD | K23: 12 | L23: 4666 | M23: 0 | N23: 55992 | T23: =IF(J22="CDD",K22,"") -> 
G24: 0 | M24: =IF(AND(J24="CDD",K24<=12),(L24*K24)*0.1,0) -> 0 | N24: =L24*K24+M24 -> 0 | T24: =IF(J23="CDD",K23,"") -> 12
G25: 0 | M25: =IF(AND(J25="CDD",K25<=12),(L25*K25)*0.1,0) -> 0 | N25: =3*12*L25 -> 0 | T25: =IF(#REF!="CDD",#REF!,"") -> 
G26: 0 | M26: =IF(AND(J24="CDD",K24<=12),(#REF!*K24)*0.1,0) -> 0 | N26: 0 | T26: =IF(J24="CDD",K24,"") -> 
G27: 0 | M27: 0 | N27: 0
G28: 0 | M28: 0 | N28: =L28*K28+M28 -> 0
G29: 0 | M29: 0 | N29: 0
G30: 0 | M30: 0 | N30: 0
B31: Total | D31: =COUNTA(D20:D30) -> 3 | E31: =SUM(E20:E30) -> 40 | F31: =SUM(F20:F30) -> 18000 | G31: =SUM(G20:G30) -> 125000 | I31: Total financé ANR | J31: =COUNTIF(J20:J30,"CDD") -> 2 | K31: =SUM(K20:K30) -> 66 | L31: =SUM(L20:L30) -> 12327.11111 | N31: =SUM(N20:N30) -> 234052 | T31: =SUM(T20:T30) -> 
B33: Personne-mois : Le nombre de personne-mois se calcule à partir du temps de recherche consacré au projet | I33: Taux de précarité (doctorants et stagiaires exclus) | M33: =T31/(E31+K31) -> 
B38: Instruments et matériels | J38: =J39+J40+J41 -> 0
B39: Achat de matériels (équipement, frais de transport, frais d'installation, frais de maintenance/révision/entretien, frais de réparation, frais d'évolution) | J39: =0 -> 0
B40: Consommables "scientifiques" (ordinateurs, logiciels, produits chimiques, ...) | J40: =0 -> 0
B41: Location de matériels | J41: =0 -> 0
B42: Bâtiment et terrains | J42: =0 -> 0
B43: Location de locaux scientifiques | J43: =0 -> 0
B44: Aménagement de locaux existants (montant de l'amortissement des travaux d'aménagement) | J44: =0 -> 0
B45: Prestations de services et DPI (Limité à 50% du montant de l'aide) | J45: =J46+J47+J48 -> 0
B46: Prestations intellectuelles (frais de PI, conseils, études marketing…) | J46: =0 -> 0
B47: Sous-traitance "scientifique" (analyse et essais techniques, saisie ou collecte de données, élimination des déchets) | J47: =0 -> 0
B48: Frais de publication (Article Processing Charges, traductions, ouvrages …) | J48: =0 -> 0
B49: Frais généraux | J49: =J50+J51+J52 -> 0
B50: Frais de missions (frais d'inscription, hébergement, transport, visa, …) | J50: =0 -> 0
B51: Frais de réception | J51: =0 -> 0
B52: Participation/organisation de colloques | J52: =0 -> 0
B53: Dépenses de facturation interne | J53: =J54+J55 -> 0
B54: Utilisation de plateformes | J54: =0 -> 0
B55: Location locaux | J55: =0 -> 0
B56: Dépenses de facturation entre partenaires (externe à l'UBO) | J56: =J57+J58 -> 0
B57: Utilisation de plateformes | J57: =0 -> 0
B58: Location locaux | J58: =0 -> 0
C122: Alertes erreurs | D122: =IF(#REF!="catégorie",1,0) ->  | L122: =IF(#REF!="catégorie",1,0) ->  | M122: =IF(#REF!="catégorie",1,0) ->  | N122: =IF(#REF!="catégorie",1,0) -> 
D123: =IF(SUM(#REF!)>0,1,0) ->  | L123: =IF(SUM(K20:K20)>0,1,0) -> 1 | M123: =IF(SUM(N20:N20)>0,1,0) -> 1 | N123: =IF(SUM(#REF!)>0,1,0) -> 
D124: =D122+D123 ->  | L124: =L122+L123 ->  | M124: =M122+M123 ->  | N124: =N122+N123 -> 
D129: =IF(I21="catégorie",1,0) -> 0 | L129: =IF(I22="catégorie",1,0) -> 0 | M129: =IF(#REF!="catégorie",1,0) ->  | N129: =IF(I27="catégorie",1,0) -> 0
D130: =IF(SUM(#REF!)>0,1,0) ->  | L130: =IF(SUM(#REF!)>0,1,0) ->  | M130: =IF(SUM(#REF!)>0,1,0) ->  | N130: =IF(SUM(#REF!)>0,1,0) -> 
D131: =D129+D130 ->  | L131: =L129+L130 ->  | M131: =M129+M130 ->  | N131: =N129+N130 -> 
D135: =IF(#REF!="catégorie",1,0) ->  | L135: =IF(#REF!="catégorie",1,0) ->  | M135: =IF(#REF!="catégorie",1,0) ->  | N135: =IF(#REF!="catégorie",1,0) -> 
D136: =IF(SUM(#REF!)>0,1,0) ->  | L136: =IF(SUM(#REF!)>0,1,0) ->  | M136: =IF(SUM(#REF!)>0,1,0) ->  | N136: =IF(SUM(#REF!)>0,1,0) -> 
D137: =D135+D136 ->  | L137: =L135+L136 ->  | M137: =M135+M136 ->  | N137: =N135+N136 -> 
D142: =IF(#REF!="",1,0) ->  | L142: =IF(#REF!>0,1,0) ->  | M142: =IF(#REF!>0,1,0) ->  | N142: =#REF!+M142 -> 
D143: =IF(#REF!="",1,0) ->  | L143: =IF(#REF!>0,1,0) ->  | M143: =IF(#REF!>0,1,0) ->  | N143: =#REF!+M143 -> 
D144: =IF(#REF!="",1,0) ->  | L144: =IF(#REF!>0,1,0) ->  | M144: =IF(#REF!>0,1,0) ->  | N144: =#REF!+M144 -> 
D145: =IF(#REF!="",1,0) ->  | L145: =IF(#REF!>0,1,0) ->  | M145: =IF(#REF!>0,1,0) ->  | N145: =#REF!+M145 -> 
D146: =IF(#REF!="",1,0) ->  | L146: =IF(#REF!>0,1,0) ->  | M146: =IF(#REF!>0,1,0) ->  | N146: =#REF!+M146 -> 

Sheet Données financières
L1: Date simulation
A2: ACRONYME | B2: =Budget!D7 -> 0 | L2: =NOW() -> 2025-02-27T14:47:39.800
A4: SYNTHESE DES DONNEES QUI SERONT A REPORTER SUR LE SITE DE SOUMISSION DE L'ANR
A6: Postes de dépenses | B6: Personnels Permanents | D6: non permanents avec financement ANR demandé | F6: non permanents sans financement ANR demandé | H6: Instruments et matériels | I6: Bâtiments et terrains | J6: Prestations de services (DPI) | K6: Frais généraux | L6: Totaux
B8: cout | C8: pers.mois | D8: cout | E8: pers.mois | F8: cout | G8: pers.mois
B9: =Budget!G31-F9 -> 101000 | C9: =Budget!E31-G9 -> 34 | D9: =Budget!N31 -> 234052 | E9: =Budget!K31 -> 66 | F9: =SUMIF(Budget!C20:C30,Budget!U5,Budget!G20:G30)+SUMIF(Budget!C20:C30,Budget!U7,Budget!G20:G30)+SUMIF(Budget!C20:C30,Budget!U8,Budget!G20:G30)+SUMIF(Budget!C20:C30,Budget!U9,Budget!G20:G30) -> 24000 | G9: =SUMIF(Budget!C20:C30,Budget!U5,Budget!E20:E30)+SUMIF(Budget!C20:C30,Budget!U7,Budget!E20:E30)+SUMIF(Budget!C20:C30,Budget!U8,Budget!E20:E30)+SUMIF(Budget!C20:C30,Budget!U9,Budget!E20:E30) -> 6 | H9: =Budget!J38+Budget!J54+Budget!J57 -> 0 | I9: =Budget!J58+Budget!J55+Budget!J42 -> 0 | J9: =Budget!J45 -> 0 | K9: =Budget!J49 -> 0 | L9: =B9+D9+F9+H9+I9+J9+K9 -> 359052
D12: Frais de gestion tutelle gestionnaire | G12: 0.105
D13: Total des frais d'environnement | G13: =(D9+H9+I9+J9+K9)*G12 -> 24575.46
D15: Frais de gestion laboratoire | G15: 0.03 | Q15: €
D16: Total des frais d'environnement | G16: =(D9+H9+I9+J9+K9)*G15 -> 7021.56
E18: Coût déclaré (€) | G18: =L9+G16+G13 -> 390649.02
E19: Taux d'aide demandé(%) | G19: 100
E21: Assiette (€) | G21: =D9+H9+I9+J9+K9+G16+G13 -> 265649.02
D24: Aide demandée | F24: =G21 -> 265649.02 | H24: €
F25: dont | G25: =Budget!J53 -> 0 | H25: € au titre de la facturation interne sur la totalité du projet
F27: dont | G27: =Budget!J56 -> 0 | H27: € au titre de la facture entre partenaires sur la totalité du projet

Sheet Réfs
C3: DOCUMENTS, REFERENCES et OUTILS en LIGNE
B4: ANR | C4: Le Plan d'Action de l'ANR
C5: Texte de l'AAP Générique
C6: Guide de l'appel à projets
C7: ANR Tour replay
B8: UBO | C8: Coûts salariaux des personnels BIATSS UBO
C9: N° RNSR Répertoire national
B10: .gouv | C10: Simulateur - Calcul de la gratification minimale d'un stagiaire

Sheet Ex dépenses éligibles
B2: Type de dépense (indicatif) | C2: Exemples de dépenses (hors RH) | D2: Commentaires
A3: Instruments et matériels | B3: Achat de matériels | C3: Ordinateur | D3: Les dépenses doivent être justifiés par les besoins scientifiques du projet. Equipement est à acheter de le début du projet sauf s'il y a une raison spécifique qui le justifie (l'arriver d'un post doc en année 3 du projet par exemple).
B4: Achat de matériels | C4: Tablette
B5: Achat de matériels | C5: IPhone
B6: Achat de matériels | C6: Fourniture de bureau
B7: Achat de matériels | C7: Disque dur externe
B8: Achat de matériels | C8: Lunettes 3D
B9: Achat de matériels | C9: Bases de données | D9: Les bases de données et les logiciels peuvent être considéré comme des immobilisations incorporelles.
B10: Achat de matériels | C10: Logiciels
B11: Achat de matériels | C11: Dictaphone
B12: Achat de matériels | C12: Livres scientifiques / documentation …
B13: Achat de matériels | C13: Tenue de plongée
B14: Achat de matériels | C14: Articles spécifiques | D14: Exemple des chocolats pour une étude sensorielle, tenue de plongé pour un doctorant, …
B15: Location de matériels | C15: Véhicule | D15: Le choix entre achat et location est purement financière. Si c'est moins cher d'acheter cela se défend à l'ANR même pour une voiture.
B16: Location de matériels | C16: Bornes de saisie
A18: Prestation de service | B18: Prestations intellectuelles | C18: Transcription d'enregistrements | D18: Les devis ou anciennes factures peuvent servir pour vous donner une idée de combien budgétiser
B19: Prestations intellectuelles | C19: Traductions
B20: Prestations intellectuelles | C20: Etudes de marketing
B21: Prestations intellectuelles | C21: Plateforme de partage de données | D21: Dans le plan gestion de données, vous êtes invité à penser au cycle de vie des données depuis leur création, partage, gestion et éventuellement diffusion. Certains archives sont payantes d'autres non. Eskemm data est une solution de stockage de données sécurisé
B22: Prestations intellectuelles | C22: Stockage de données
B23: Prestations intellectuelles | C23: Consultation juridique
B24: Prestations intellectuelles | C24: Formation spécifique pour une membre de l'équipe
B25: Sous-traitance "scientifique" | C25: Traitement statistique
A27: Frais généraux | B27: Frais de missions | C27: Transport : avion, train, voiture, bateau, bus, tram, métro | D27: Attention au remboursement : dés que possible demander aux gestionnaires de acheter des billets via le marché au lieu d'avancer car le remboursement des frais de mission est possible que si vous partez.
B28: Frais de missions | C28: Location de véhicule
B29: Frais de missions | C29: Restauration | D29: Pour les frais de mission il faut se référer aux règles de l'établissement.
B30: Frais de missions | C30: Hébergement : Hôtel, RBnB, location gite
B31: Frais de missions | C31: Visa
B32: Frais de missions | C32: Inscription conférence, colloque
B33: Organisation de colloques | C33: Location de salle
B34: Organisation de colloques | C34: Frais de bouche
B35: Organisation de colloques | C35: Cadeaux | D35: Sac de colloque, stylo, calepin, cadeaux, …
B36: Organisation de colloques | C36: Frais de mission des invités
B37: Organisation de colloques | C37: Communication | D37: Posters, site internet, actes de colloque, programmes, impression en facturation interne
B38: Frais de publication | C38: Article Processing Charges | D38: Pour la publication d'articles en voie dorée A noter le DOI avec la dépense pour faciliter le travail de recensement des APC's payé (un remboursement d'une partie des APC est fait par l'éditeur à l'UBO). Code XC.1 (de XC.12 à XC.17) dans SIFAC | F38: XC.1
B39: Frais de publication | C39: Publication de livres | F39: FRAIS DE PUBLICATION
F40: XC.12 R315 FRAIS DE PUBLICATION D'ANNONCES DE RECRUTEMENT
A41: Dépenses de facturation interne | B41: Prestations intellectuelles | C41: Traductions (Bureau des Traducteurs) | F41: XC.13 R316 AUTRES FRAIS DE PUBLICATION (BOAMP,…)
B42: Utilisation des plateformes UBO | C42: Analyses | D42: Prévoir 25 à 30% de plus. Par exemple vous avez besoin de faire 50 analyses RMN on vous conseille de prévoir 70 exemple pour prévenir des aléas de la recherche. Si vous avez une plus grand incertitude, vous pouvez prévoir plus. | F42: XC.14 R462 FRAIS POUR PUBLICATION EN ACCES OUVERT D’UN ARTICLE SCIENTIFIQUE (Article processing charge)
F43: XC.15 R463 FRAIS POUR PUBLICATION EN ACCES OUVERT D’UNE MONOGRAPHIE (Book processing charge)
A44: Dépenses de facturation entre partenaires (externe à l'UBO) | B44: Utilisation des plateforme autres que celles de l'UBO | C44: Analyses | F44: XC.16 R464 FRAIS DE LIBERATION DE PUBLICATIONS SCIENTIFIQUES POUR DIFFUSION EN ACCES OUVERT
F45: XC.17 R465 FRAIS DE PUBLICATIONS SCIENTIFIQUES POUR SERVICES (soumission, aide à la publication d’ouvrage, figures
F46: et pages supplémentaires)
A47: L’ACHAT DURABLE DANS LES PROJETS ANR ET EUROPEENS - ANR GENERIQUE 1- Achat d’équipements neufs ou d’occasion Les coût d’acquisition des instruments, des matériels et des consommables scientifiques utilisés spécifiquement pour la réalisation du Projet éligibles dans les conditions suivantes : Cas des Bénéficiaires à coût marginal – Achat : le prix d’achat des instruments et matériels est admissible Cas des Bénéficiaires à coût complet – Achat : seuls les coûts d’amortissement correspondant à la durée du projet sont admissibles. Les biens acquis peuvent être neufs ou d’occasion, sous réserve du respect des procédures d’achat public. 2- Location d’équipement Les coûts de location des instruments, des matériels et des consommables scientifiques utilisés spécifiquement pour la réalisation du Projet sont éligibles, dans la limite de la durée du projet. 3- Frais de de maintenance / révision / entretien, de réparation, d’adaptation ou d’évolution d’un matériel/instrument existant Les frais de maintenance / révision / entretien, de réparation, d’adaptation ou d’évolution d’un matériel/instrument existant sont admissibles.

Sheet JCJC
B2: Décharges JCJC : Pour atteindre 75% d'implication (idéale) : (pour un projet de 48 mois cela fait 36 personne.mois minimum pour le porteur), un jeune chercher peut demander des décharges d'enseignement. Points importants : - La demande de décharge doit être vue au Conseil d'Administration de l'UBO. - La décharge peut être sur une partie de la durée du projet. Une décharge la première année par exemple n'est pas très réaliste. - Le cout de la décharge est calculé à partir du salaire chargé du porteur. Pour une décharge de 96h/an c'est 1/4 du salaire cout employeur. Vous pouvez demander à la DRIVe ou la DRH pour connaitre le montant ou regarder votre bulletin de salaire. - La décharge ne peut pas dépasser 96h/an. | M2: Les modulations de service d’enseignement (ou décharges d’enseignement) sont des dépenses éligibles uniquement dans le cas de l’instrument de financement « jeunes chercheuses – jeunes chercheurs » (JCJC) et limitées au coordinateur scientifique.
B12: Eligibilité JCJC : la soutenance de thèse doit dater de moins de 10 ans (dérogation 1 année par enfant) 5 ans de carrière (de CDI / MCF - CDDs et Post Docs non inclus)
B16: Le choix entre JCJC ou PRC : Si vous êtes éligible au JCJC, la plupart du temps, il est recommandé de proposer votre projet avec cet instrument. Il est fait pour soutenir les jeunes chercheurs, les aider à construire leur expérience en recherche sur projets, créer leur propre équipe sur une thématique personnelle avec une approche originale. Cependant, si vous avez déjà une carrière bien établie dans votre domaine de recherche : HDR avec plusieurs publications, en charge d'une équipe et/ou que vous avez géré plusieurs projets de recherche et que votre projet est multi partenaire ... il est recommandé (même si vous êtes éligible au JCJC) de proposer le projet en PRC.
B18: Procedure demande de décharges d'enseignement (suite à la conventionnement du projet) :
B19: Ecrire une lettre au Président sous couvert DRH
B20: Lettre type demande des décharges d'enseignement : | G20: https://www.univ-brest.fr/digitalAssets/105/105119_Lettre_demande_de--charge.docx
B21: La demande serait validé en CA ou accordé par un arreté du President

Sheet PRCE
B2: Pour les bénéficiaires à couts complets, incluant les entreprises (dans les PRCE) mais aussi d'autres partenaires de droit privé engagés dans des PRC, il y a 2 points de vigilance:
B4: 1. le taux d'aide ANR varie en fonction de la catégorie de recherche (R fondamentale, Développement Expérimental, ou R industrielle) dont les définitions sont données en Annexe du Règlement financier
B6: 2. il est fondamental d'interroger les services comptables de l'entreprise pour avoir une idée réaliste de son taux réel de frais généraux (overheads) en % de ses couts salariaux. En effet, le taux maximal de 68% autorisé par l'ANR est tout sauf réaliste pour une TPE ou PME, en particulier s'il s'agit d'une entreprise de conseil ou d'un bureau d'études qui a très peu de frais d'infrastructures immobilières et/ou d'équipement lourds de recherche (un taux de 15 à 25 % est souvent plus proche de la réalité).

Sheet Suivi versions
A2: Nouvelle version | B2: Modifications
A3: 2021-03-30 | B3: + information sur le fait que les décharges sont uniquement dans le cadres des JCJCs
A4: 2021-04-07 | B4: Correction erreur calcule des frais de gestion 12% au lieu de 8% onglet données financière
A5: 2021-04-08 | B5: + calcule de taux de précarité et code NACRES pour les APC dans exemples de dépenses
A6: 2021-04-20 | B6: revalorisation du coût décharge de 5390 à 5602€/mois
A7: 2021-10-19 | B7: + nouveautés 2022, éligibilité JCJC
A8: 2021-11-03 | B8: correction notice +/-7% entre ph1 et ph2
A9: 2021-11-15 | B9: Changement du responsable administrative, ergonomie, mise à jour de liens
A10: 2021-12-01 | B10: modification n° de téléphone resposable administrative DRIVe (Kristen Bosser) 60 18
A11: 2022-01-11 | B11: modification n° de téléphone resposable administrative DRIVe à 60 07
A12: 2022-03-08 | B12: modification gratifcation stage (prix prends en compte des éventuels augmentations), *cout d'un décharge (JCJC)
A13: 2022-03-15 | B13: correction erreur de calcule de l'assiette : ajout des frais de gestion de 10%
A14: 2022-03-16 | B14: ajout calcule décharges JCJC onglé budget
A15: 2022-03-21 | B15: modifications de la présentation des données admin pour mieux correspondre à l'interface IRIS. Ajout de l'adresse mail & téléphone du resp. juridique. Modification des frais de gestion de 2% UR à 2,5% et 10% d'établissement à 10,5% onglé données financières
A16: 2022-07-06 | B16: Clarification de IBAN pour mieux correspondre au site de l'ANR
A17: 2022-11-04 | B17: Changement de l'information concernant le calcul décharges JCJC, correction de l'exemple de cout d'un décharge, suppression "nouveautés 2021"; augmentation des stages à 700€/mois (à cause d'inflation) ; conseil de majorer les couts voir "menu: nouveautés"
A18: 2022-11-17 | B18: Mise à jour des refs, explications sur la procedure demande de décharges JCJC, ajoute du lien des n° RNSR & codes UR
A19: 2023-02-09 | B19: Changement du Président - Matthieu GALLOU à Pascal OLIVARD
A20: 2023-03-01 | B20: Changement préciput UR 3% au lieu de 2,5%
A21: 2023-03-02 | B21: Ajout explication personne.mois onglet "notice" + modification gratification de stage onglet "notice" + information PPST
A22: 2023-08-21 | B22: Complement d'information concernant les dépenses éligibles équipement
A23: 2023-09-19 | B23: Révalorisation de la thèse (120k€ à 130K€) et stage (700 à 750€/mois) & modification de la préciput labo et gestionnaire
A24: 2023-10-13 | B24: Révalorisation salaire post doc & précision sur le calcul des personnes non financées (onglet données financières)
A25: 2023-12-18 | B25: Changement de rue des archives -> Matthieu Gallou
A26: 2024-01-25 | B26: Modifications salariales concernant les post-docs
A27: 2024-03-15 | B27: Correction cas J48 "budget"
A28: 2024-03-20 | B28: Modification des informations admin changement de mail (drive) et n° de téléphone (60.07)
A29: 2024-04-02 | B29: Buget "frais de publication" dans préstations de services au lieu de frais généraux
A30: 2025-02-20 | B30: Ajustement le cout d'un IGE & un Post doc. Nouveautés 2022&3 suprimé
A31: 2025-02-27 | B31: Changement de SIRET
